Cogmind - Beta 10.2 @@@ ROGUE MODE // 2021.04.04 @ 18:11:32 Player: ChromeKnight Result: Self-destructed Performance ------------- Evolutions (1) 500 Regions Visited (2) 400 Robots Destroyed (20) 100 Value Destroyed (399) 399 Prototype IDs (0) 0 Alien Tech Used (0) 0 Bonus (0) 0 TOTAL SCORE: 1399 Bonus ------- None Cogmind --------- Core Integrity 196/400 Matter 221/300 Energy 40/100 System Corruption 0% Temperature Cool (0) Movement Core (200) Ox3 Location -9/Materials Parts ------- > --- POWER (1) -------- (None) > --- PROPULSION (2) --- (None) > --- UTILITY (4) ------ Light Armor Plating Light Armor Plating Light Armor Plating Light Armor Plating > --- WEAPON (2) ------- (None) > --- INVENTORY (4) ---- Hover Unit Large Storage Unit Light Armor Plating Light Armor Plating Peak State ------------ > --- POWER ------------ Ion Engine > --- PROPULSION ------- Improved Hover Unit Improved Hover Unit > --- UTILITY ---------- Heat Sink Large Storage Unit > --- WEAPON ----------- Particle Gun Improved Light Cannon > --- INVENTORY -------- Hover Unit Large Storage Unit Light Armor Plating Light Armor Plating Light Armor Plating Light Armor Plating Light Armor Plating Light Armor Plating Light Armor Plating Light Armor Plating [Rating: 12] Favorites ----------- Power Ion Engine Engine Ion Engine Propulsion Aluminum Leg Leg Aluminum Leg Hover Unit Improved Hover Unit Utility Heat Sink Device Heat Sink Storage Small Storage Unit Protection Light Armor Plating Weapon Particle Gun Energy Gun Particle Gun Ballistic Cannon Improved Light Cannon Build | -11 -10 -9 ------- Run | Scr Mat Mat Slots Evolved 2 | . . 2 Power . | . . . Propulsion . | . . . Utility 2 | . . 2 Weapon . | . . . Parts Attached 26 | 6 12 8 Power 2 | 1 1 . Engine 2 | 1 1 . Core . | . . . Reactor . | . . . Propulsion 7 | 2 5 . Treads . | . . . Leg 3 | 2 1 . Wheel . | . . . Hover 4 | . 4 . Flight . | . . . Utility 9 | 1 2 6 Device 1 | . 1 . Storage 2 | 1 1 . Processor . | . . . Hackware . | . . . Protection 6 | . . 6 Artifact . | . . . Weapon 8 | 2 4 2 Energy Gun 6 | 2 3 1 Energy Cannon . | . . . Ballistic Gun . | . . . Ballistic Cannon 2 | . 1 1 Launcher . | . . . Special Weapon . | . . . Impact Weapon . | . . . Slashing Weapon . | . . . Piercing Weapon . | . . . Special Melee Weapon . | . . . Unidentified Prototypes . | . . . Parts Lost 8 | . . 8 Power 1 | . . 1 Propulsion 2 | . . 2 Utility 3 | . . 3 Weapon 2 | . . 2 Highest Loss Streak 8 | . . 8 Average Slot Usage (%) 87 | . 95 62 Engine 12 | . 14 5 Leg 13 | . 17 . Hover 10 | . 9 11 Device 10 | . 10 8 Storage 13 | . 14 11 Protection 1 | . . 8 Energy Gun 21 | . 26 7 Ballistic Cannon 3 | . 1 8 Naked Turns . | . . . Heaviest Build 30 | 12 28 30 Greatest Support 20 | 20 20 16 Greatest Overweight (x) 9 | 2 4 9 Average Overweight (x) . | . . 1 Largest Inventory Capacity 10 | 6 10 10 Average Capacity 7 | 5 7 9 Most Carried 10 | 1 10 10 Average Carried 5 | . 4 8 Final Capacity 10 | 6 10 4 Final Carried 10 | 1 10 4 Class Distribution -------------------- 100% | Mutant Dominant Class ---------------- Mutant | -10/Materials Mutant | -9/Materials Resources | -11 -10 -9 ----------- Run | Scr Mat Mat Matter Collected 451 | 207 189 55 Remotely . | . . . Salvage Created 454 | . 361 93 Parts 37 | . 33 4 Haulers Intercepted . | . . . Recyclers Shooed . | . . . Parts Field Recycled . | . . . Retrieved Matter . | . . . Parts Self-Destructed . | . . . Prevented . | . . . Kills | -11 -10 -9 ------- Run | Scr Mat Mat Combat Hostiles Destroyed 16 | . 11 5 Guns 9 | . 7 2 Cannons 6 | . 3 3 AOE 1 | . 1 . Classes Destroyed 4 | . 4 . Worker 2 | . 2 . Watcher 2 | . 2 . Swarmer 8 | . 6 2 Grunt 8 | . 5 3 Best Kill Streak 5 | . 5 5 Combat Bots Only 5 | . 5 5 Max Kills in Single Turn 2 | . 1 2 Gunslinging . | . . . Exploded 1 | . 1 . Melee . | . . . Uniques/NPCs Destroyed . | . . . Combat | -11 -10 -9 -------- Run | Scr Mat Mat Damage Taken 1235 | . 333 902 Core 263 | . 59 204 Absorbed by Shields . | . . . Core Remaining (%) 88 | 100 76 . Volleys Fired 45 | . 21 24 Largest 2 | . 2 2 Hottest 115 | . 115 104 Shots Fired 84 | . 42 42 Gun 56 | . 38 18 Cannon 28 | . 4 24 Launcher . | . . . Special . | . . . Kinetic 28 | . 4 24 Thermal 47 | . 29 18 Explosive . | . . . Electromagnetic 9 | . 9 . Robot Hit Streak 9 | . 9 6 Robot Miss Streak 4 | . 2 4 Penetration Max . | . . . Secondary Targets 1 | . 1 . Max Gunslinging Chain 1 | . 1 . Shots Hit Robots 41 | . 23 18 Core Hits 23 | . 17 6 Critical Hits . | . . . Critical Kills . | . . . Critical Parts Destroyed . | . . . Melee Attacks . | . . . Impact . | . . . Slashing . | . . . Piercing . | . . . Sneak Attacks . | . . . Combat Hostiles . | . . . Follow-up Attacks . | . . . Damage Inflicted 630 | . 325 305 Guns 373 | . 224 149 Cannons 221 | . 66 155 Explosions 35 | . 35 . Melee . | . . . Ramming 1 | . . 1 Kinetic 221 | . 66 155 Thermal 301 | . 152 149 Explosive . | . . . Electromagnetic 107 | . 107 . Impact . | . . . Slashing . | . . . Piercing . | . . . Highest Corruption . | . . . Average Corruption . | . . . Corruption Purged . | . . . Overload Shots . | . . . Overflow Damage 5 | . . 5 Projectiles 5 | . . 5 Explosions . | . . . Melee . | . . . Knockbacks 2 | . . 2 Impact . | . . . Kinetic 2 | . . 2 Secondary . | . . . Self-Inflicted Damage 39 | . 39 . Shots 1 | . 1 . Rammed 1 | . . 1 Targets Rammed 1 | . . 1 Kicked . | . . . Crushed . | . . . Highest Temperature 320 | . 180 320 Average Temperature 109 | . 54 157 Received Heat Transfer 504 | . 78 426 Effects 1 | . . 1 Energy Bleed 1 | . . 1 Siege Activations . | . . . Robots Corrupted . | . . . Combat Hostiles . | . . . Parts Fried . | . . . Impact Corruptions 1 | . . 1 Robots Melted . | . . . Combat Hostiles . | . . . Parts Melted . | . . . Heat Transferred 679 | . 309 370 Parts Sabotaged . | . . . Parts Stolen . | . . . Parts Stripped . | . . . Power Chain Reactions 1 | . 1 . Missiles Intercepted . | . . . Alert | -11 -10 -9 ------- Run | Scr Mat Mat Peak Influence 172 | . 172 171 Initial 61 | . . 61 Average 56 | . 46 105 Maximum Alert Level . | . . . Low Security (%) 100 | 100 100 100 Level 1 . | . . . Level 2 . | . . . Level 3 . | . . . Level 4 . | . . . Level 5 . | . . . High Security . | . . . Max Security . | . . . Squads Dispatched 3 | . 2 1 Investigation 2 | . 2 . Extermination . | . . . Reinforcement 1 | . . 1 Assault . | . . . Garrison . | . . . Intercept . | . . . Construction Impeded . | . . . Haulers Reinforced . | . . . Stealth | -11 -10 -9 --------- Run | Scr Mat Mat Distress Signals 3 | . . 3 Communications Jammed . | . . . Distress Signals . | . . . Times Spotted 36 | . 15 21 Peak Tracking Total 11 | . 3 11 Tactical Retreats 1 | . 1 . Traps | -11 -10 -9 ------- Run | Scr Mat Mat Traps Triggered 2 | . 2 . Indirectly . | . . . Trap Hack Attempts . | . . . Triggered . | . . . Disarmed . | . . . Reprogrammed . | . . . Reused . | . . . Traps Extracted . | . . . Installed . | . . . Triggered . | . . . Machines | -11 -10 -9 ---------- Run | Scr Mat Mat Machines Disabled . | . . . Max in Single Turn . | . . . Machines Sabotaged . | . . . Garrisons Compromised . | . . . Overloaded Fab Kills . | . . . Fab Network Shutdowns . | . . . Hacking | -11 -10 -9 --------- Run | Scr Mat Mat Machines Accessed 2 | . 2 . Terminals 2 | . 2 . Fabricators . | . . . Repair Stations . | . . . Recycling Units . | . . . Scanalyzers . | . . . Garrison Access . | . . . Total Hacks 5 | . 5 . Successful 1 | . 1 . Failed 4 | . 4 . Catastrophic 1 | . 1 . Database Lockouts . | . . . Manual 2 | . 2 . Terminals 5 | . 5 . Fabricators . | . . . Repair Stations . | . . . Recycling Units . | . . . Scanalyzers . | . . . Garrison Access . | . . . Terminal Hacks 1 | . 1 . Zone Layout 1 | . 1 . Fabricator Hacks . | . . . Repair Station Hacks . | . . . Recycling Unit Hacks . | . . . Scanalyzer . | . . . Garrison Access Hacks . | . . . Unauthorized Hacks . | . . . Terminals . | . . . Fabricators . | . . . Repair Stations . | . . . Recycling Units . | . . . Scanalyzers . | . . . Garrison Access . | . . . Data Cores Recovered . | . . . Used . | . . . Hacking Detections 1 | . 1 . Full Trace Events . | . . . Feedback Events . | . . . Feedback Blocked . | . . . Robot Schematics Acquired . | . . . Robots Built . | . . . Matter . | . . . Time . | . . . Total Robot Build Rating . | . . . Part Schematics Acquired . | . . . Parts Built . | . . . Matter . | . . . Time . | . . . Total Part Build Rating . | . . . Parts Repaired . | . . . Time . | . . . Parts Recycled . | . . . Recycled Matter . | . . . Retrieved Matter . | . . . Retrieved Components . | . . . Parts Scanalyzed . | . . . Part Schematics Acquired . | . . . Parts Damaged . | . . . Bothacking | -11 -10 -9 ------------ Run | Scr Mat Mat Used RIF Installer . | . . . Robots Hacked . | . . . Non-combat . | . . . Combat . | . . . Robot Hacks Applied . | . . . Relay Couplers Released . | . . . Robots Rewired . | . . . Allies Hacked . | . . . Hacks Repelled . | . . . Allies | -11 -10 -9 -------- Run | Scr Mat Mat Total Allies . | . . . Largest Group . | . . . Highest-Rated Group . | . . . Highest-Rated Ally . | . . . Total Orders . | . . . Ally Attacks . | . . . Total Damage . | . . . Kills . | . . . Allies Corrupted . | . . . Allies Melted . | . . . Intel | -11 -10 -9 ------- Run | Scr Mat Mat Robot Analysis Total . | . . . Derelict Logs Recovered . | . . . Drone Launches . | . . . Drone Recoveries . | . . . Exploration | -11 -10 -9 ------------- Run | Scr Mat Mat Turns Passed 952 | 62 682 208 Spaces Moved 629 | 45 499 85 Core 22 | 9 2 11 Treads . | . . . Legs 343 | 36 307 . Wheels . | . . . Hover 264 | . 190 74 Flight . | . . . Fastest Speed 50 | 50 56 116 Average Speed 116 | 116 111 148 Slowest Speed 500 | 150 250 500 Overloaded Moves . | . . . Propulsion Burnouts . | . . . Robots Hopped . | . . . Cave-ins Triggered . | . . . Exploration Rate (%) 31 | 4 75 15 Regions Visited 2 Branch Regions . Pre-discovered Areas . | . . . Known Exits Taken . | . . . Unknown Exits Taken 2 | 1 1 . Scrap Searched . | . . . Spaces Dug 1 | . . 1 Terrain Destroyed 7 | . 5 2 Melee . | . . . Projectile 2 | . . 2 AOE 5 | . 5 . Terrain Rammed . | . . . Walls Destroyed . | . . . Machines Disabled . | . . . Actions | -11 -10 -9 --------- Run | Scr Mat Mat Total 763 | 51 589 123 Wait 24 | . 23 1 Move 627 | 44 498 85 Hop . | . . . Pick Up 20 | 1 18 1 Fast Attach 9 | 6 3 . Attach 5 | . . 5 Detach . | . . . Swap 12 | . 9 3 Drop 20 | . 17 3 Fire 45 | . 21 24 Melee . | . . . Ram 1 | . . 1 Kick . | . . . Crush . | . . . Escape Stasis . | . . . Rewire . | . . . Trap . | . . . Miscellaneous . | . . . Route ------- -11/Scrapyard -10/Materials (discovered 4 exits: [*Mat x2] / [*Min x2]) -9/Materials History --------- Turn | Location | Event 15 | -11/Scrapyard | Discovered new exit (range 16) 63 | -11/Scrapyard | Entered Materials 100 | -10/Materials | Discovered new exit (range 8) 307 | -10/Materials | Discovered new exit (range 15) 312 | -10/Materials | Build established: Mutant 402 | -10/Materials | Discovered new exit (range 16) 481 | -10/Materials | Discovered new exit (range 7) 745 | -10/Materials | Entered another Materials area 745 | -9/Materials | Evolved 2 slots: Utility x2 949 | -9/Materials | Core integrity fell below 50% 950 | -9/Materials | Lost 8 parts (1p2n3u2w) 953 | -9/Materials | Self-destructed Last Messages --------------- 00898_ G-47 Trooper unfolds itself. 00899_ K-01 Serf collects debris. 00899_ Particle Gun destroyed. 00899_ Acquired 24 matter. 00906_ R-06 Scavenger collects Flight Unit. 00908_ Lgt. Armor Plating destroyed. 00910_ G-47 Trooper knocked back. 00910_ R-06 Scavenger collects Ion Engine. 00912_ W-16 Scout sends out distress signal. 00915_ Heat Sink destroyed. 00916_ K-01 Serf collects debris. 00918_ Lgt. Armor Plating destroyed. 00919_ Imp. Light Cannon destroyed. 00923_ U-05 Engineer builds a Wall. 00935_ W-16 Scout sends out distress signal. 00941_ Slammed into W-16 Scout. 00950_ W-16 Scout destroyed. 00950_ R-06 Scavenger collects Signal Interpreter. 00951_ Dropped Lrg. Storage Unit. 00952_ Acquired Lrg. Storage Unit. Map ----- +----------------------------------------------------+ | ?????????????????????????????????????????????????? | | ?????????????????????????????????????????????????? | | ?????????????????????????????????????????????????? | | ?????????????????????????????????????????????????? | | ?????????????????????????????????????????????????? | | ?????????????????????????????????????????????????? | | ?????????????????????????????????????????????????? | | ?????????????????????????????????????????????????? | | ?????????????????????????????????????????????????? | | ?????????????????????????? ?????????????????????? | | ?????????????????????????? ?????????????????????? | | ?????????????????????????? ?????????????????????? | | ?????????????????????????? ?????????????????????? | | ?????????????????????????? ?????????????????????? | | ?????????????????????????? ?????????????????????? | | ?????????????????????????# ??????????????????????? | | ????????????????????????# ??????????????????????? | | ????????????????????????# ??????????????????????? | | ?????????????############ ??????????????????????? | | ?????????????# ## ??????????????????????? | | ?????????????# """ """ ##r ??????????????????????? | | ?????????????# """ """ ## #??????????????????????? | | ?????????????# """ """ ## #??????????????????????? | | ?????????????# ## #??????????????????????? | | ?????????????# ##!#??????????????????????? | | ?????????????####/#######@#??????????????????????? | | ???????????????# %%% gg #??????????????????????? | | ???????????????# % rgw#??????????????????????? | | ???????????????# % Yg #??????????????????????? | | ???????????????# """ #??????????????????????? | | ???????????????# """"" g #??????????????????????? | | ######/###?????# """"" gg#??????????????????????? | | # ####### """"" #??????????????????????? | | # """ #??????????????????????? | | # T #??????????????????????? | | # #??????????????????????? | | # ###+### ########??????????????????????? | | ## #?# ## #?????????????????????????????? | | ## #?# ## #?????????????????????????????? | | ## #?# ## #?????????????????????????????? | | ## #?# # ?????????????????????????????? | | ## ### # ????????????????????????????? | | + + # T ???????????????????????????? | | ##### ### # ??????????????????????????? | | ????##+##?##### ####?????????????????????????? | | ???? ?????###+###????????????????????????????? | | ??# ??????????????????????????????????????? | | ??# [ #????????????????????????????????????? | | ??# #????????????????????????????????????? | | ??# #????????????????????????????????????? | +----------------------------------------------------+ Best States ------------- Heat Dissipation 38 Energy Generation 10 Energy Capacity 250 Matter Stores 300 Matter Capacity 300 Sight Range 16 Terrain Scan Density 10 Armor Coverage 450 Evasion (%) 53 Item Schematics ----------------- None Robot Schematics ------------------ None Fabricated ------------ Nothing Alien Tech Used ----------------- None Achievements -------------- None Challenges ------------ None Game ------ Seed TeslaThunderThruster Manual? 0 Play Time 00:26:35 Cumulative 119.7 hours Start 2021.04.04 @ 17:27:30 End 2021.04.04 @ 18:11:32 Sessions 1 Manual Loads 0 Difficulty Rogue Special Mode None Game No. 280 Rogue 127 Adventurer 148 Explorer 5 Win Type - Total 2 Types 2/0/0/0/0/0/0/0/0 Lore% 64 Gallery% 71 Achievement% 55 Wizard Run 0 Options --------- ASCII 0 Keyboard 0 Movement Numpad Keybinds 0 Fullscreen 1 Font 18/CogNarrow Map View 76x50 Tactical HUD 1 Map Filters NONE Filters NONE Steam 1 RUN: e643c5d5-cbea-4fa6-9673-43c71f8aa22f